fUST/lending_fUST_20240728
["ID","MTS","AMOUNT","RATE_DAILY","PERIOD"]
[333415564,1722118241062,-500.0,0.00013698,2]
[333415565,1722118241072,-500.0,0.00013698,2]
[333415566,1722118241083,-500.0,0.00013698,2]
[333415567,1722118241095,-500.53,0.00013698,2]
[333415568,1722118241104,-500.0,0.00013698,2]
[333415569,1722118241115,-500.0,0.00013698,2]
[333415570,1722118241124,-500.0,0.00013698,2]
[333415571,1722118241134,-500.0,0.00013698,2]
[333415572,1722118241145,-511.48181701,0.00013698,2]
[333415573,1722118241156,-500.0,0.00013698,2]
[333415574,1722118241166,-500.0,0.00013698,2]
[333415575,1722118241177,-500.0,0.00013698,2]
[333415576,1722118241187,-409.76258325,0.00013698,2]
[333415577,1722118241198,-500.0,0.00013698,2]
[333415578,1722118241208,-500.0,0.00013698,2]
[333415579,1722118241219,-500.0,0.00013698,2]
[333415580,1722118241231,-500.0,0.00013698,2]
[333415581,1722118241243,-500.0,0.00013698,2]
[333415582,1722118241253,-500.0,0.00013698,2]
[333415583,1722118241269,-500.0,0.00013698,2]
[333415584,1722118241285,-500.0,0.00013698,2]
[333415585,1722118241295,-500.0,0.00013698,2]
[333415586,1722118241305,-500.0,0.00013698,2]
[333415587,1722118241315,-310.22262115,0.00013698,2]
[333415588,1722118241330,-189.77737885,0.00013698,2]
[333415589,1722118241341,-500.0,0.00013698,2]
[333415590,1722118241351,-500.0,0.00013698,2]
[333415591,1722118241360,-562.44036248,0.00013698,2]
[333415592,1722118241369,-500.0,0.00013698,2]
[333415593,1722118241379,-500.0,0.00013698,2]
[333415594,1722118241389,-500.0,0.00013698,2]
[333415595,1722118241398,-500.0,0.00013698,2]
[333415596,1722118241409,-500.0,0.00013698,2]
[333415597,1722118241419,-518.48427505,0.00013698,2]
[333415598,1722118241430,-500.0,0.00013698,2]
[333415599,1722118241439,-500.0,0.00013698,2]
[333415600,1722118241450,-503.71708603,0.00013698,2]
[333415601,1722118241460,-500.0,0.00013698,2]
[333415602,1722118241471,-524.52769654,0.00013698,2]
[333415603,1722118241481,-500.0,0.00013698,2]
[333415604,1722118241491,-602.36606478,0.00013698,2]
[333415605,1722118241501,-500.0,0.00013698,2]
[333415606,1722118241511,-500.0,0.00013698,2]
[333415607,1722118241522,-500.0,0.00013698,2]
[333415608,1722118241532,-500.0,0.00013698,2]
[333415609,1722118241543,-500.0,0.00013698,2]
[333415610,1722118241553,-500.0,0.00013698,2]
[333415611,1722118241563,-500.0,0.00013698,2]
[333415612,1722118241572,-259.5351481,0.00013698,2]
[333415613,1722118241581,-500.0,0.00013698,2]
[333415614,1722118241593,-500.0,0.00013698,2]
[333415615,1722118241604,-502.31656906,0.00013698,2]
[333415616,1722118241614,-500.0,0.00013698,2]
[333415617,1722118241625,-500.0,0.00013698,2]
[333415618,1722118241635,-500.0,0.00013698,2]
[333415619,1722118241644,-500.0,0.00013698,2]
[333415620,1722118241655,-500.0,0.00013698,2]
[333415621,1722118241664,-500.0,0.00013698,2]
[333415622,1722118241674,-500.0,0.00013698,2]
[333415623,1722118241684,-500.0,0.00013698,2]
[333415624,1722118241694,-500.0,0.00013698,2]
[333415625,1722118241704,-500.0,0.00013698,2]
[333415626,1722118241713,-500.0,0.00013698,2]
[333415627,1722118241723,-500.0,0.00013698,2]
[333415628,1722118241733,-500.0,0.00013698,2]
[333415629,1722118241743,-500.0,0.00013698,2]
[333415630,1722118241754,-500.0,0.00013698,2]
[333415631,1722118241764,-500.0,0.00013698,2]
[333415632,1722118241774,-501.49133993,0.00013698,2]
[333415633,1722118241784,-500.0,0.00013698,2]
[333415634,1722118241794,-500.0,0.00013698,2]
[333415635,1722118241804,-500.0,0.00013698,2]
[333415636,1722118241818,-500.0,0.00013698,2]
[333415637,1722118241830,-503.36101696,0.00013698,2]
[333415638,1722118242001,-500.0,0.00013698,2]
[333415639,1722118242012,-500.0,0.00013698,2]
[333415640,1722118242022,-500.0,0.00013698,2]
[333415641,1722118242031,-500.0,0.00013698,2]
[333415642,1722118242042,-500.0,0.00013698,2]
[333415643,1722118242051,-500.0,0.00013698,2]
[333415644,1722118242064,-500.0,0.00013698,2]
[333415645,1722118242075,-1566.89,0.00013698,2]
[333415646,1722118242085,-500.0,0.00013698,2]
[333415647,1722118242098,-500.0,0.00013698,2]
[333415648,1722118242107,-500.0,0.00013698,2]
[333415649,1722118242117,-500.0,0.00013698,2]
[333415650,1722118242126,-500.2396854,0.00013698,2]
[333415651,1722118242136,-500.0,0.00013698,2]
[333415652,1722118242146,-148.29542894,0.00013698,2]
[333415653,1722118242164,-351.70457106,0.00013698,2]
[333415654,1722118242174,-500.0,0.00013698,2]
[333415655,1722118242184,-500.0,0.00013698,2]
[333415656,1722118242195,-500.0,0.00013698,2]
[333415657,1722118242205,-500.0,0.00013698,2]
[333415658,1722118242215,-924.51,0.00013698,2]
[333415659,1722118242224,-500.0,0.00013698,2]
[333415660,1722118242234,-500.0,0.00013698,2]
[333415661,1722118242245,-500.0,0.00013698,2]
[333415662,1722118242256,-500.0,0.00013698,2]
[333415663,1722118242266,-500.0,0.00013698,2]
[333415664,1722118242276,-500.0,0.00013698,2]
[333415665,1722118242286,-500.0,0.00013698,2]
[333415666,1722118242296,-500.0,0.00013698,2]
[333415667,1722118242306,-500.0,0.00013698,2]
[333415668,1722118242316,-500.0,0.00013698,2]
[333415669,1722118242327,-500.0,0.00013698,2]
[333415670,1722118242339,-500.0,0.00013698,2]
[333415671,1722118242354,-210.10830037,0.00013698,2]
[333415672,1722118242364,-500.0,0.00013698,2]
[333415673,1722118242373,-500.0,0.00013698,2]
[333415674,1722118242385,-500.0,0.00013698,2]
[333415675,1722118242395,-500.0,0.00013698,2]
[333415676,1722118242404,-500.0,0.00013698,2]
[333415677,1722118242414,-500.0,0.00013698,2]
[333415678,1722118242424,-500.0,0.00013698,2]
[333415679,1722118242433,-500.0,0.00013698,2]
[333415680,1722118242443,-500.0,0.00013698,2]
[333415681,1722118242453,-500.0,0.00013698,2]
[333415682,1722118242463,-500.0,0.00013698,2]
[333415683,1722118242473,-1155.1,0.00013698,2]
[333415684,1722118242483,-500.0,0.00013698,2]
[333415685,1722118242493,-500.0,0.00013698,2]
[333415686,1722118242503,-659.61,0.00013698,2]
[333415687,1722118242513,-648.50978167,0.00013698,2]
[333415688,1722118242524,-500.0,0.00013698,2]
[333415689,1722118242536,-500.0,0.00013698,2]
[333415690,1722118242547,-500.0,0.00013698,2]
[333415691,1722118242558,-500.0,0.00013698,2]
[333415692,1722118242568,-500.0,0.00013698,2]
[333415693,1722118242580,-455.03517072,0.00013698,2]
[333415694,1722118242593,-500.0,0.00013698,2]
[333415695,1722118242605,-1406.88,0.00013698,2]
[333415696,1722118242615,-500.0,0.00013698,2]
[333415697,1722118242627,-500.0,0.00013698,2]
[333415698,1722118242637,-500.0,0.00013698,2]
[333415699,1722118242649,-500.0,0.00013698,2]
[333415700,1722118242659,-500.0,0.00013698,2]
[333415701,1722118242668,-500.0,0.00013698,2]
[333415702,1722118242678,-500.0,0.00013698,2]
[333415703,1722118242689,-100.44167899,0.00013698,2]
[333415754,1722118243718,-473.52832101,0.00013698,2]
[333415755,1722118243728,-500.0,0.00013698,2]
[333415756,1722118243740,-500.0,0.00013698,2]
[333415757,1722118243750,-500.0,0.00013698,2]
[333415758,1722118243759,-500.0,0.00013698,2]
[333415759,1722118243769,-500.0,0.00013698,2]
[333415760,1722118243779,-326.62602389,0.00013698,2]
[333415761,1722118243791,-173.37397611,0.00013698,2]
[333415762,1722118243801,-500.0,0.00013698,2]
[333415763,1722118243812,-203.383515,0.00013699,2]
[333415764,1722118243824,-500.0,0.00013971,2]
[333415765,1722118243834,-173.27802628,0.00013971,2]
[333415766,1722118243847,-500.0,0.00013971,2]
[333415767,1722118243856,-312.28752674,0.00013971,2]
[333415768,1722118243867,-500.0,0.00013971,2]
[333415769,1722118243877,-500.0,0.00013971,2]
[333415770,1722118243888,-500.0,0.00013971,2]
[333415771,1722118243897,-62.79430929,0.00013971,2]
[333415772,1722118243914,-437.20569071,0.00013971,2]
[333415773,1722118243923,-500.0,0.00013971,2]
[333415774,1722118243933,-88.67480929,0.00013971,2]
[333415784,1722118246616,-365.30982103,0.00013971,2]
[333415785,1722118246626,-500.0,0.00013972,2]
[333415786,1722118246636,-500.0,0.00013972,2]
[333415787,1722118246646,-591.01572532,0.00013972,2]
[333415788,1722118246656,-1566.89,0.00013972,2]
[333415789,1722118246666,-924.51,0.00013972,2]
[333415790,1722118246677,-500.0,0.00013972,2]
[333415791,1722118246687,-500.0,0.00013972,2]
[333415792,1722118246696,-500.0,0.00013972,2]
[333415793,1722118246705,-500.0,0.00013972,2]
[333415794,1722118246715,-500.0,0.00013972,2]
[333415795,1722118246725,-500.0,0.00013972,2]
[333415796,1722118246735,-500.0,0.00013972,2]
[333415797,1722118246745,-500.0,0.00013972,2]
[333415799,1722118246755,-500.0,0.00013972,2]
[333415801,1722118246765,-500.0,0.00013972,2]
[333415803,1722118246774,-1155.1,0.00013972,2]
[333415805,1722118246784,-500.0,0.00013972,2]
[333415807,1722118246794,-500.0,0.00013972,2]
[333415809,1722118246804,-659.61,0.00013972,2]
[333415811,1722118246817,-500.0,0.00013972,2]
[333415813,1722118246827,-500.0,0.00013972,2]
[333415815,1722118246837,-500.0,0.00013972,2]
[333415817,1722118246847,-500.0,0.00013972,2]
[333415819,1722118246858,-500.0,0.00013972,2]
[333415821,1722118246869,-1406.88,0.00013972,2]
[333415822,1722118246879,-500.0,0.00013972,2]
[333415823,1722118246891,-500.0,0.00013972,2]
[333415824,1722118246901,-500.0,0.00013972,2]
[333415825,1722118246910,-500.0,0.00013972,2]
[333415826,1722118246920,-500.0,0.00013972,2]
[333415827,1722118246929,-573.97,0.00013972,2]
[333415828,1722118246938,-500.0,0.00013972,2]
[333415829,1722118246948,-500.0,0.00013972,2]
[333415830,1722118246958,-500.0,0.00013972,2]
[333415831,1722118246967,-500.0,0.00013972,2]
[333415832,1722118246977,-500.0,0.00014142,2]
[333415833,1722118246987,-6666.56208428,0.00014237,2]
[333415834,1722118246996,-541.64160817,0.00014246,2]
[333415835,1722118247006,-500.0,0.00014246,2]
[333415836,1722118247015,-1566.89,0.00014246,2]
[333415837,1722118247025,-924.51,0.00014246,2]
[333415838,1722118247035,-500.0,0.00014246,2]
[333415839,1722118247045,-500.0,0.00014246,2]
[333415840,1722118247055,-383.36113776,0.00014246,2]
[333415841,1722118247065,-500.0,0.00014246,2]
[333415842,1722118247075,-500.0,0.00014246,2]
[333415843,1722118247084,-537.11948987,0.00014246,2]
[333415844,1722118247096,-500.0,0.00014246,2]
[333415845,1722118247106,-500.0,0.00014246,2]
[333415846,1722118247116,-500.0,0.00014246,2]
[333415847,1722118247126,-500.0,0.00014246,2]
[333415848,1722118247135,-53.71632652,0.00014246,2]
[333415849,1722118247387,-88.04259451,0.00014246,2]
[333415850,1722118247398,-1013.34107897,0.00014246,2]
[333415851,1722118247407,-167.26,0.00014246,2]
[333415852,1722118247417,-500.0,0.00014246,2]
[333415853,1722118247426,-659.61,0.00014246,2]
[333415855,1722118247436,-500.0,0.00014246,2]
[333415857,1722118247445,-500.0,0.00014246,2]
[333415859,1722118247455,-500.0,0.00014246,2]
[333415861,1722118247465,-500.0,0.00014246,2]
[333415862,1722118247474,-500.0,0.00014246,2]
[333415864,1722118247484,-1406.88,0.00014246,2]
[333415866,1722118247493,-500.0,0.00014246,2]
[333415868,1722118247502,-500.0,0.00014246,2]
[333415869,1722118247512,-500.0,0.00014246,2]
[333415870,1722118247521,-252.90892103,0.00014246,2]
[333415871,1722118266033,157.27135881,0.0001213,2]
[333415872,1722118297825,287.00275421,9.999e-05,2]
[333415873,1722118307133,194.74554772,9.999e-05,2]
[333415874,1722118310666,404.41023413,9.999e-05,2]
[333415875,1722118311071,103.47557174,9.999e-05,2]
[333415876,1722118311111,53.12234885,9.999e-05,2]
[333415877,1722118313010,200.0,0.0001,2]
[333415878,1722118318784,600.34409866,9.999e-05,2]
[333415879,1722118320075,154.76012181,9.999e-05,2]
[333415880,1722118323250,403.39616838,9.999e-05,2]
[333415881,1722118323510,208.59187351,9.999e-05,2]
[333415882,1722118323560,156.95300993,9.999e-05,2]
[333415884,1722118325310,157.00321085,9.999e-05,2]
[333415885,1722118337817,155.02261108,9.999e-05,2]
[333415886,1722118339905,522.69914253,9.999e-05,2]
[333415887,1722118342769,2107.09834524,9.999e-05,2]
[333415888,1722118361409,14948.86164883,9.999e-05,2]
[333415889,1722118380162,218.4546097,9.999e-05,2]
[333415890,1722118383003,200.0,0.0001,2]
[333415891,1722118387839,644.57917452,9.999e-05,2]
[333415892,1722118425049,663.67519992,9.999e-05,2]
[333415893,1722118427250,171.56633397,9.999e-05,2]
[333415894,1722118451745,200.0,0.0001,2]
[333415895,1722118491290,156.40691398,9.999e-05,2]
[333415896,1722118494754,239.87184714,0.0001,2]
[333415897,1722118517425,200.0,0.0001,2]
[333415898,1722118582881,200.0,0.0001,2]
[333415899,1722118699778,2675.0,0.0002335,120]
[333415900,1722118800916,154.96701285,9.999e-05,2]
[333415902,1722118860275,157.67039442,9.999e-05,2]
[333415903,1722118965255,173.03012309,9.999e-05,2]
[333415904,1722119096638,778.99945191,9.999e-05,2]
[333415906,1722119131169,-842.28359943,0.00010959,2]
[333415907,1722119141421,233.90882641,0.0001,2]
[333415908,1722119159662,154.76012181,9.999e-05,2]
[333415909,1722119166508,154.76012181,0.0001,2]
[333415910,1722119169358,196.30125481,9.999e-05,2]
[333415911,1722119182956,628.45453856,9.999e-05,2]
[333415912,1722119190743,285.14370431,9.999e-05,2]
[333415913,1722119193668,533.46933228,9.999e-05,2]
[333415914,1722119193745,154.76012181,9.999e-05,2]
[333415915,1722119210002,230.37770091,9.999e-05,2]
[333415916,1722119212147,209.69045866,9.999e-05,2]
[333415917,1722119226112,-300.0,0.00010958,2]
[333415918,1722119226137,-1.81640057,0.00010959,2]
[333415919,1722119226168,-437.45,0.00010959,2]
[333415920,1722119226192,-364.54,0.00010959,2]
[333415921,1722119226218,-303.79,0.00010959,2]
[333415922,1722119226240,-253.16,0.00010959,2]
[333415923,1722119226262,-210.96,0.00010959,2]
[333415924,1722119226284,-175.8,0.00010959,2]
[333415925,1722119226307,-879.04,0.00010959,2]
[333415926,1722119226328,-166.666666,0.00011151,2]
[333415927,1722119226350,-603.55736892,0.0001127,2]
[333415928,1722119226372,-166.391683,0.00011721,2]
[333415929,1722119226396,-7874.50066797,0.00011756,2]
[333415930,1722119227102,-5721.00980575,0.00011756,2]
[333415931,1722119227795,519.14870802,9.999e-05,2]
[333415932,1722119229242,-873.3760826,0.00011756,2]
[333415933,1722119233633,154.76012181,9.999e-05,2]
[333415934,1722119233681,163.28779954,9.999e-05,2]
[333415935,1722119235747,188.0737834,9.999e-05,2]
[333415936,1722119238092,-1325.39723812,0.00011756,2]
[333415937,1722119246095,-1098.19018,0.00011756,2]
[333415938,1722119250103,189.33829521,9.999e-05,2]
[333415939,1722119254118,-276.271723,0.00011756,2]
[333415940,1722119262303,288.28494131,9.999e-05,2]
[333415941,1722119269837,342.78895988,9.999e-05,2]
[333415944,1722119284508,155.60380753,9.999e-05,2]
[333415945,1722119296520,200.67868528,0.0001,2]
[333415947,1722119326017,151.13796388,0.00022,120]
[333415948,1722119353109,-2142.48387596,0.00011756,2]
[333415950,1722119356101,-3721.1953112,0.00011756,2]
[333415951,1722119356125,-166.391683,0.00011797,2]
[333415952,1722119356153,-166.391683,0.00011873,2]
[333415953,1722119356178,-166.391683,0.0001195,2]
[333415954,1722119356204,-166.391683,0.00012026,2]
[333415955,1722119356233,-166.391683,0.00012102,2]
[333415956,1722119356258,-154.66746495,0.00012119,2]
[333415957,1722119356281,-814.21648288,0.0001212,2]
[333415958,1722119356306,-166.391683,0.00012179,2]
[333415959,1722119356330,-166.391683,0.00012255,2]
[333415960,1722119356353,-102.05895997,0.00012331,2]
[333415981,1722119432680,-1030.92905881,0.00012331,2]
[333415983,1722119432697,-149.86168953,0.00012331,2]
[333415985,1722119432711,-64.33272303,0.00012331,2]
[333415986,1722119432723,-168.021974,0.00013425,2]
[333415987,1722119432736,-193.45787629,0.00013598,2]
[333415988,1722119432749,-1134.97761592,0.00013598,2]
[333415989,1722119432774,-592.3934866,0.00013598,2]
[333415990,1722119432784,-300.0,0.00013685,2]
[333415991,1722119432796,-5103.24157989,0.00013686,2]
[333415992,1722119432810,-329.16322832,0.00013686,2]
[333416023,1722119439541,-561.21223301,0.00013686,2]
[333416025,1722119439554,-999.70439571,0.00013686,2]
[333416028,1722119439565,-13230.0688411,0.00013688,2]
[333416030,1722119439578,-500.0,0.00013698,2]
[333416032,1722119439589,-519.61993245,0.00013698,2]
[333416034,1722119439600,-500.0,0.00013698,2]
[333416036,1722119439611,-500.0,0.00013698,2]
[333416038,1722119439624,-500.0,0.00013698,2]
[333416040,1722119439636,-500.0,0.00013698,2]
[333416042,1722119439648,-500.0,0.00013698,2]
[333416044,1722119439659,-500.0,0.00013698,2]
[333416046,1722119439670,-500.0,0.00013698,2]
[333416048,1722119439682,-500.0,0.00013698,2]
[333416050,1722119439695,-531.11048598,0.00013698,2]
[333416052,1722119439706,-500.0,0.00013698,2]
[333416054,1722119439717,-318.30549013,0.00013698,2]
[333416055,1722119439728,-500.0,0.00013698,2]
[333416056,1722119439741,-500.0,0.00013698,2]
[333416057,1722119439753,-500.0,0.00013698,2]
[333416058,1722119439924,-500.0,0.00013698,2]
[333416059,1722119439941,-500.0,0.00013698,2]
[333416060,1722119439950,-500.0,0.00013698,2]
[333416061,1722119439961,-500.0,0.00013698,2]
[333416062,1722119439970,-385.16207719,0.00013698,2]
[333416063,1722119439980,-500.0,0.00013698,2]
[333416064,1722119439990,-500.0,0.00013698,2]
[333416065,1722119440000,-500.0,0.00013698,2]
[333416066,1722119440009,-500.0,0.00013698,2]
[333416067,1722119440019,-500.0,0.00013698,2]
[333416068,1722119440029,-500.0,0.00013698,2]
[333416069,1722119440038,-387.25778253,0.00013698,2]
[333416070,1722119440048,-500.0,0.00013698,2]
[333416071,1722119440058,-500.0,0.00013698,2]
[333416072,1722119440067,-501.77381646,0.00013698,2]
[333416073,1722119440078,-500.0,0.00013698,2]
[333416074,1722119440087,-519.42046231,0.00013698,2]
[333416075,1722119440097,-500.03043161,0.00013698,2]
[333416076,1722119440106,-500.0,0.00013698,2]
[333416077,1722119440115,-500.0,0.00013698,2]
[333416078,1722119440125,-500.0,0.00013698,2]
[333416079,1722119440134,-502.14058153,0.00013698,2]
[333416080,1722119440143,-502.70659956,0.00013698,2]
[333416081,1722119440153,-500.0,0.00013698,2]
[333416082,1722119440162,-500.0,0.00013698,2]
[333416083,1722119440176,-500.0,0.00013698,2]
[333416084,1722119440186,-500.0,0.00013698,2]
[333416085,1722119440196,-500.0,0.00013698,2]
[333416086,1722119440206,-500.0,0.00013698,2]
[333416087,1722119440217,-390.73947296,0.00013698,2]
[333416089,1722119440227,-500.0,0.00013698,2]
[333416091,1722119440237,-500.0,0.00013698,2]
[333416092,1722119440249,-500.0,0.00013698,2]
[333416093,1722119440259,-500.0,0.00013698,2]
[333416094,1722119440268,-500.0,0.00013698,2]
[333416096,1722119440277,-500.0,0.00013698,2]
[333416098,1722119440287,-500.0,0.00013698,2]
[333416099,1722119440297,-500.0,0.00013698,2]
[333416100,1722119440307,-500.0,0.00013698,2]
[333416101,1722119440316,-500.97595616,0.00013698,2]
[333416102,1722119440327,-500.0,0.00013698,2]
[333416103,1722119440337,-500.0,0.00013698,2]
[333416104,1722119440347,-500.0,0.00013698,2]
[333416105,1722119440357,-500.0,0.00013698,2]
[333416106,1722119440367,-500.0,0.00013698,2]
[333416107,1722119440377,-500.0,0.00013698,2]
[333416108,1722119440386,-500.0,0.00013698,2]
[333416109,1722119440396,-500.0,0.00013698,2]
[333416110,1722119440405,-519.83,0.00013698,2]
[333416111,1722119440416,-647.51,0.00013698,2]
[333416112,1722119440426,-43.08271116,0.00013698,2]
[333416132,1722119440857,-456.91728884,0.00013698,2]
[333416134,1722119440867,-500.0,0.00013698,2]
[333416136,1722119440876,-500.0,0.00013698,2]
[333416138,1722119440887,-500.0,0.00013698,2]
[333416140,1722119440897,-500.0,0.00013698,2]
[333416142,1722119440906,-500.0,0.00013698,2]
[333416144,1722119440918,-570.7599877,0.00013698,2]
[333416146,1722119440930,-500.0,0.00013698,2]
[333416148,1722119440939,-500.0,0.00013698,2]
[333416150,1722119440950,-224.1136796,0.00013698,2]
[333416151,1722119440960,-500.0,0.00013698,2]
[333416153,1722119440969,-331.29242817,0.00013698,2]
[333416155,1722119440982,-168.70757183,0.00013698,2]
[333416157,1722119440992,-500.0,0.00013698,2]
[333416159,1722119441002,-203.93690796,0.00013698,2]
[333416161,1722119441012,-500.0,0.00013698,2]
[333416163,1722119441022,-500.0,0.00013698,2]
[333416165,1722119441031,-500.0,0.00013698,2]
[333416166,1722119441041,-280.67043456,0.00013698,2]
[333416169,1722119441054,-219.32956544,0.00013698,2]
[333416171,1722119441064,-500.0,0.00013698,2]
[333416172,1722119441074,-500.0,0.00013698,2]
[333416174,1722119441083,-500.0,0.00013698,2]
[333416176,1722119441094,-500.0,0.00013698,2]
[333416178,1722119441103,-500.0,0.00013698,2]
[333416180,1722119441112,-500.0,0.00013698,2]
[333416182,1722119441122,-500.0,0.00013698,2]
[333416184,1722119441131,-500.0,0.00013698,2]
[333416185,1722119441141,-500.0,0.00013698,2]
[333416187,1722119441151,-500.0,0.00013698,2]
[333416189,1722119441163,-500.0,0.00013698,2]
[333416191,1722119441177,-500.0,0.00013698,2]
[333416193,1722119441187,-500.0,0.00013698,2]
[333416195,1722119441197,-500.0,0.00013698,2]
[333416197,1722119441208,-500.0,0.00013698,2]
[333416199,1722119441219,-500.0,0.00013698,2]
[333416201,1722119441228,-500.0,0.00013698,2]
[333416202,1722119441239,-500.0,0.00013698,2]
[333416204,1722119441252,-500.0,0.00013698,2]
[333416206,1722119441264,-500.0,0.00013698,2]
[333416209,1722119441274,-500.0,0.00013698,2]
[333416211,1722119441285,-500.0,0.00013698,2]
[333416213,1722119441296,-500.0,0.00013698,2]
[333416215,1722119441307,-592.9,0.00013698,2]
[333416217,1722119441317,-500.0,0.00013698,2]
[333416219,1722119441328,-500.0,0.00013698,2]
[333416221,1722119441338,-504.50703315,0.00013698,2]
[333416223,1722119441347,-500.0,0.00013698,2]
[333416224,1722119441358,-500.0,0.00013698,2]
[333416225,1722119441369,-500.0,0.00013698,2]
[333416226,1722119441379,-500.0,0.00013698,2]
[333416227,1722119441388,-561.87823279,0.00013698,2]
[333416228,1722119441398,-500.0,0.00013698,2]
[333416229,1722119441408,-500.0,0.00013698,2]
[333416230,1722119441419,-500.0,0.00013698,2]
[333416231,1722119441428,-500.0,0.00013698,2]
[333416232,1722119441438,-510.76347615,0.00013698,2]
[333416233,1722119441448,-500.0,0.00013698,2]
[333416234,1722119441458,-500.2396854,0.00013698,2]
[333416235,1722119441468,-500.0,0.00013698,2]
[333416236,1722119441477,-512.06726257,0.00013698,2]
[333416237,1722119441487,-500.0,0.00013698,2]
[333416238,1722119441496,-500.0,0.00013698,2]
[333416239,1722119441506,-373.74386389,0.00013698,2]
[333416240,1722119441515,-500.0,0.00013698,2]
[333416241,1722119441525,-500.24,0.00013698,2]
[333416242,1722119441535,-500.0,0.00013698,2]
[333416243,1722119441545,-500.0,0.00013698,2]
[333416244,1722119441555,-500.0,0.00013698,2]
[333416245,1722119441565,-500.0,0.00013698,2]
[333416246,1722119441576,-500.0,0.00013698,2]
[333416247,1722119441586,-500.0,0.00013698,2]
[333416248,1722119441596,-142.89015657,0.00013698,2]
[333416551,1722119444495,-357.10984343,0.00013698,2]
[333416553,1722119444505,-500.0,0.00013698,2]
[333416555,1722119444515,-500.0,0.00013698,2]
[333416557,1722119444525,-500.0,0.00013698,2]
[333416559,1722119444534,-500.0,0.00013698,2]
[333416561,1722119444544,-500.0,0.00013698,2]
[333416563,1722119444553,-500.0,0.00013698,2]
[333416565,1722119444563,-500.0,0.00013698,2]
[333416567,1722119444572,-500.0,0.00013698,2]
[333416569,1722119444583,-133.07376069,0.00013698,2]
[333416584,1722119444716,-366.92623931,0.00013698,2]
[333416586,1722119444725,-500.0,0.00013698,2]
[333416589,1722119444735,-500.0,0.00013698,2]
[333416591,1722119444745,-500.0,0.00013698,2]
[333416594,1722119444754,-305.64838923,0.00013698,2]
[333416597,1722119444763,-500.0,0.00013698,2]
[333416600,1722119444773,-500.0,0.00013698,2]
[333416602,1722119444782,-500.0,0.00013698,2]
[333416605,1722119444791,-500.0,0.00013698,2]
[333416609,1722119444801,-500.0,0.00013698,2]
[333416611,1722119444810,-500.0,0.00013698,2]
[333416613,1722119444819,-500.0,0.00013698,2]
[333416615,1722119444830,-500.0,0.00013698,2]
[333416617,1722119444839,-500.0,0.00013698,2]
[333416619,1722119444849,-500.0,0.00013698,2]
[333416621,1722119444858,-500.0,0.00013698,2]
[333416623,1722119444867,-500.0,0.00013698,2]
[333416625,1722119444877,-228.22718863,0.00013698,2]
[333416626,1722119444887,-500.0,0.00013698,2]
[333416627,1722119444897,-134.4759237,0.00013698,2]
[333416815,1722119446805,-373.4595461,0.00013698,2]
[333416817,1722119446814,-640.47,0.00013698,2]
[333416819,1722119446824,-500.0,0.00013698,2]
[333416821,1722119446835,-500.0,0.00013698,2]
[333416823,1722119446845,-500.0,0.00013698,2]